[Event "*** Titled Tuesday Blitz"]
[Site "Chess.com"]
[Date "2019.01.01"]
[Round "10"]
[White "Alexey_Potapov"]
[Black "Kacparov"]
[Result "1-0"]
[WhiteElo "2507"]
[BlackElo "2773"]
[TimeControl "180+2"]
[EndTime "15:22:46 PST"]
[Termination "Alexey_Potapov won by resignation"]

1. c4 {[%clk 0:03:01.1]} 1... e6 {[%clk 0:02:57.8]} 2. Nf3 {[%clk 0:03:01.9]}
2... d5 {[%clk 0:02:57.6]} 3. b3 {[%clk 0:03:03.2]} 3... Nf6 {[%clk 0:02:55.8]}
4. Bb2 {[%clk 0:03:03.2]} 4... Be7 {[%clk 0:02:57]} 5. g3 {[%clk 0:03:04.3]}
5... O-O {[%clk 0:02:58]} 6. Bg2 {[%clk 0:03:05.8]} 6... b6 {[%clk 0:02:57.3]}
7. O-O {[%clk 0:03:03.4]} 7... Bb7 {[%clk 0:02:58.4]} 8. d3 {[%clk 0:03:03.7]}
8... Nbd7 {[%clk 0:02:56.4]} 9. Nbd2 {[%clk 0:03:04.7]} 9... c5 {[%clk
0:02:56.8]} 10. cxd5 {[%clk 0:02:58.3]} 10... exd5 {[%clk 0:02:57.6]} 11. d4
{[%clk 0:02:59.3]} 11... Rc8 {[%clk 0:02:54.2]} 12. Rc1 {[%clk 0:02:53.9]} 12...
Re8 {[%clk 0:02:55.2]} 13. e3 {[%clk 0:02:43.1]} 13... h6 {[%clk 0:02:55.9]} 14.
Nb1 {[%clk 0:02:39.4]} 14... Ne4 {[%clk 0:02:54.3]} 15. Nc3 {[%clk 0:02:35.6]}
15... Ndf6 {[%clk 0:02:53.9]} 16. Bh3 {[%clk 0:02:18.1]} 16... Ra8 {[%clk
0:02:53.7]} 17. Nxe4 {[%clk 0:02:11.2]} 17... Nxe4 {[%clk 0:02:54.7]} 18. Ne5
{[%clk 0:02:05.7]} 18... Bd6 {[%clk 0:02:51.1]} 19. Bf5 {[%clk 0:01:56.5]} 19...
Qe7 {[%clk 0:02:46.7]} 20. Qg4 {[%clk 0:01:43.4]} 20... Nf6 {[%clk 0:02:37.2]}
21. Qd1 {[%clk 0:01:37.1]} 21... Bc8 {[%clk 0:02:31.2]} 22. Qf3 {[%clk
0:01:26.6]} 22... Bxf5 {[%clk 0:02:31.3]} 23. Qxf5 {[%clk 0:01:27.4]} 23... Bxe5
{[%clk 0:02:28]} 24. dxe5 {[%clk 0:01:25.8]} 24... Ne4 {[%clk 0:02:27.8]} 25.
Rfd1 {[%clk 0:01:26.2]} 25... Rad8 {[%clk 0:02:28.2]} 26. Rc2 {[%clk 0:01:15.9]}
26... Ng5 {[%clk 0:02:23.2]} 27. h4 {[%clk 0:01:12.5]} 27... Ne6 {[%clk
0:02:17.6]} 28. Rcd2 {[%clk 0:01:11.1]} 28... Nc7 {[%clk 0:02:01.5]} 29. f4
{[%clk 0:01:05.9]} 29... Qe6 {[%clk 0:01:55.5]} 30. Qh5 {[%clk 0:01:01.7]} 30...
Qh3 {[%clk 0:01:53.8]} 31. Rg2 {[%clk 0:01:01.1]} 31... d4 {[%clk 0:01:50.6]}
32. exd4 {[%clk 0:00:59.4]} 32... cxd4 {[%clk 0:01:49]} 33. Qf3 {[%clk 0:00:56]}
33... Nb5 {[%clk 0:01:28.2]} 34. Rgd2 {[%clk 0:00:51.7]} 34... Rc8 {[%clk
0:01:23.3]} 35. Bxd4 {[%clk 0:00:48.8]} 35... Nxd4 {[%clk 0:01:15.8]} 36. Rxd4
{[%clk 0:00:49.8]} 36... Rc2 {[%clk 0:01:16.8]} 37. R4d2 {[%clk 0:00:49.2]}
37... Rxd2 {[%clk 0:01:18]} 38. Rxd2 {[%clk 0:00:50.2]} 38... Rc8 {[%clk
0:01:19.1]} 39. Kf2 {[%clk 0:00:48.5]} 39... h5 {[%clk 0:01:12.8]} 40. Qg2
{[%clk 0:00:45.3]} 40... Qf5 {[%clk 0:01:11.5]} 41. Qd5 {[%clk 0:00:42.5]} 41...
g6 {[%clk 0:01:04.2]} 42. Kg2 {[%clk 0:00:36.9]} 42... Rc3 {[%clk 0:00:57.4]}
43. Qd4 {[%clk 0:00:32.9]} 43... Rc1 {[%clk 0:00:55.6]} 44. a3 {[%clk
0:00:30.3]} 44... Qe6 {[%clk 0:00:46.5]} 45. Qd5 {[%clk 0:00:25.4]} 45... Qf5
{[%clk 0:00:43.4]} 46. Qd3 {[%clk 0:00:25]} 46... Qe6 {[%clk 0:00:42.9]} 47. Qd5
{[%clk 0:00:24.1]} 47... Qxd5+ {[%clk 0:00:33.6]} 48. Rxd5 {[%clk 0:00:24.7]}
48... Rc2+ {[%clk 0:00:34.9]} 49. Kh3 {[%clk 0:00:23.3]} 49... Rc3 {[%clk
0:00:36.2]} 50. Rd8+ {[%clk 0:00:22]} 50... Kg7 {[%clk 0:00:37.2]} 51. Rd7
{[%clk 0:00:22.4]} 51... a5 {[%clk 0:00:32.8]} 52. e6 {[%clk 0:00:21.3]} 52...
Rxb3 {[%clk 0:00:32.5]} 53. Rxf7+ {[%clk 0:00:21.1]} 53... Kg8 {[%clk
0:00:33.6]} 54. Rf6 {[%clk 0:00:21.6]} 54... Kg7 {[%clk 0:00:32.5]} 55. Rf7+
{[%clk 0:00:22.3]} 55... Kg8 {[%clk 0:00:33.7]} 56. f5 {[%clk 0:00:22.8]} 56...
gxf5 {[%clk 0:00:33.4]} 57. Rxf5 {[%clk 0:00:24.2]} 57... Rxa3 {[%clk
0:00:31.2]} 58. e7 {[%clk 0:00:24.6]} 58... Re3 {[%clk 0:00:31.6]} 59. Rf8+
{[%clk 0:00:25.1]} 59... Kg7 {[%clk 0:00:32.6]} 60. e8=Q {[%clk 0:00:27]} 60...
Rxe8 {[%clk 0:00:33]} 61. Rxe8 {[%clk 0:00:28.9]} 61... a4 {[%clk 0:00:34]} 62.
Rb8 {[%clk 0:00:29.9]} 62... b5 {[%clk 0:00:35.5]} 63. Rxb5 {[%clk 0:00:31]} 1-0

[Event "*** Titled Tuesday Blitz"]
[Site "Chess.com"]
[Date "2019.01.01"]
[Round "10"]
[White "shnitez"]
[Black "PlotnikovPavel"]
[Result "0-1"]
[WhiteElo "2550"]
[BlackElo "2403"]
[TimeControl "180+2"]
[EndTime "15:23:11 PST"]
[Termination "PlotnikovPavel won by resignation"]

1. e4 {[%clk 0:03:01.9]} 1... e6 {[%clk 0:02:59.9]} 2. d4 {[%clk 0:03:02.4]}
2... d5 {[%clk 0:03:01.2]} 3. Bd3 {[%clk 0:03:03.9]} 3... dxe4 {[%clk
0:03:01.7]} 4. Bxe4 {[%clk 0:03:05.8]} 4... Nf6 {[%clk 0:03:02.1]} 5. Bf3 {[%clk
0:03:07.2]} 5... Be7 {[%clk 0:03:03.6]} 6. Ne2 {[%clk 0:03:08.2]} 6... O-O
{[%clk 0:03:05.1]} 7. O-O {[%clk 0:03:08.8]} 7... Nbd7 {[%clk 0:03:06.6]} 8.
Nbc3 {[%clk 0:03:06.3]} 8... e5 {[%clk 0:03:02.4]} 9. Re1 {[%clk 0:02:56.8]}
9... Re8 {[%clk 0:03:02.7]} 10. Ng3 {[%clk 0:02:44.1]} 10... exd4 {[%clk
0:02:59.2]} 11. Qxd4 {[%clk 0:02:46]} 11... Bc5 {[%clk 0:02:58.9]} 12. Rxe8+
{[%clk 0:02:42.2]} 12... Qxe8 {[%clk 0:03:00.8]} 13. Qd1 {[%clk 0:02:40.1]}
13... Ne5 {[%clk 0:02:59]} 14. Nce4 {[%clk 0:02:27.4]} 14... Nxf3+ {[%clk
0:02:54.2]} 15. Qxf3 {[%clk 0:02:29.3]} 15... Nxe4 {[%clk 0:02:51.7]} 16. Nxe4
{[%clk 0:02:28.4]} 16... f5 {[%clk 0:02:45.1]} 17. Ng3 {[%clk 0:02:08]} 17...
Qe1+ {[%clk 0:02:43.1]} 18. Nf1 {[%clk 0:02:09.1]} 18... Be6 {[%clk 0:02:43.1]}
19. b3 {[%clk 0:01:58.5]} 19... Qe5 {[%clk 0:02:31.5]} 20. c3 {[%clk 0:01:15.9]}
20... Bd5 {[%clk 0:02:25]} 21. Qg3 {[%clk 0:01:07.9]} 21... Qxg3 {[%clk
0:02:16]} 22. hxg3 {[%clk 0:01:09.8]} 22... a5 {[%clk 0:02:02.3]} 23. Be3 {[%clk
0:01:09.2]} 23... Be7 {[%clk 0:02:00.8]} 24. Rd1 {[%clk 0:01:04.8]} 24... c6
{[%clk 0:02:01.5]} 25. c4 {[%clk 0:01:03.7]} 25... Be6 {[%clk 0:02:02]} 26. a4
{[%clk 0:00:34.5]} 26... Rd8 {[%clk 0:01:55.4]} 27. Rxd8+ {[%clk 0:00:24.8]}
27... Bxd8 {[%clk 0:01:55.6]} 28. Nd2 {[%clk 0:00:24.2]} 28... Kf7 {[%clk
0:01:55.1]} 29. Kf1 {[%clk 0:00:25.2]} 29... g5 {[%clk 0:01:53.9]} 30. Ke2
{[%clk 0:00:25.4]} 30... h5 {[%clk 0:01:50.9]} 31. Kd3 {[%clk 0:00:25.1]} 31...
Kg6 {[%clk 0:01:43.4]} 32. Nf3 {[%clk 0:00:21.7]} 32... h4 {[%clk 0:01:28.7]}
33. gxh4 {[%clk 0:00:21.6]} 33... gxh4 {[%clk 0:01:30.6]} 34. Ng1 {[%clk
0:00:19.7]} 34... Bc7 {[%clk 0:01:15.6]} 35. Nh3 {[%clk 0:00:19.2]} 35... Bf7
{[%clk 0:01:05]} 36. Nf4+ {[%clk 0:00:20.1]} 36... Kf6 {[%clk 0:01:03.2]} 37.
Nh3 {[%clk 0:00:20.8]} 37... Bh5 {[%clk 0:01:01]} 38. Bg5+ {[%clk 0:00:20.8]}
38... Ke6 {[%clk 0:00:58.7]} 39. f3 {[%clk 0:00:15.5]} 39... Bg3 {[%clk
0:00:43]} 40. Bd8 {[%clk 0:00:09.7]} 40... Bg6 {[%clk 0:00:30]} 41. Bxa5 {[%clk
0:00:08.8]} 41... f4+ {[%clk 0:00:31.2]} 42. Ke2 {[%clk 0:00:07.1]} 42... Bc2
{[%clk 0:00:31.4]} 43. Bd2 {[%clk 0:00:07.9]} 43... Kf5 {[%clk 0:00:32.1]} 44.
b4 {[%clk 0:00:07.8]} 44... Bxa4 {[%clk 0:00:33]} 45. Kd3 {[%clk 0:00:08.8]}
45... b5 {[%clk 0:00:30.6]} 46. c5 {[%clk 0:00:09.1]} 46... Bb3 {[%clk
0:00:31.1]} 47. Kd4 {[%clk 0:00:05.5]} 47... Bc4 {[%clk 0:00:31.5]} 48. Ng1
{[%clk 0:00:05.2]} 48... Bf1 {[%clk 0:00:32.3]} 49. Bc1 {[%clk 0:00:05.1]} 49...
Bxg2 {[%clk 0:00:32.8]} 50. Kd3 {[%clk 0:00:05.8]} 50... h3 {[%clk 0:00:33.6]}
51. Nxh3 {[%clk 0:00:06.7]} 51... Bxh3 {[%clk 0:00:35.5]} 52. Ke2 {[%clk
0:00:07.8]} 52... Ke6 {[%clk 0:00:33.4]} 53. Bd2 {[%clk 0:00:07.7]} 53... Kd5
{[%clk 0:00:34.4]} 54. Bc3 {[%clk 0:00:09]} 54... Kc4 {[%clk 0:00:34.9]} 55. Bd2
{[%clk 0:00:10.2]} 55... Bf5 {[%clk 0:00:35.6]} 56. Kd1 {[%clk 0:00:10]} 56...
Bd3 {[%clk 0:00:34.7]} 57. Kc1 {[%clk 0:00:11]} 57... Be2 {[%clk 0:00:35.7]} 0-1

[Event "*** Titled Tuesday Blitz"]
[Site "Chess.com"]
[Date "2019.01.01"]
[Round "10"]
[White "Qingdom"]
[Black "PrinceCharming92"]
[Result "1-0"]
[WhiteElo "2188"]
[BlackElo "2395"]
[TimeControl "180+2"]
[EndTime "15:23:15 PST"]
[Termination "Qingdom won by checkmate"]

1. d4 {[%clk 0:03:01.9]} 1... d5 {[%clk 0:03:00.7]} 2. Bf4 {[%clk 0:03:02.4]}
2... c6 {[%clk 0:03:00.8]} 3. e3 {[%clk 0:03:02.8]} 3... Nf6 {[%clk 0:03:01.3]}
4. Nd2 {[%clk 0:03:02.9]} 4... Bf5 {[%clk 0:03:02.1]} 5. c4 {[%clk 0:03:03.2]}
5... e6 {[%clk 0:02:55.5]} 6. Qb3 {[%clk 0:03:03.7]} 6... Qb6 {[%clk 0:02:55.7]}
7. c5 {[%clk 0:03:03.4]} 7... Qxb3 {[%clk 0:02:51.4]} 8. axb3 {[%clk 0:03:03.4]}
8... Nbd7 {[%clk 0:02:46.8]} 9. b4 {[%clk 0:03:04.6]} 9... a6 {[%clk 0:02:45.7]}
10. b5 {[%clk 0:03:05.7]} 10... cxb5 {[%clk 0:02:46.3]} 11. Bxb5 {[%clk
0:03:06.5]} 11... Rc8 {[%clk 0:02:47.6]} 12. Be2 {[%clk 0:02:59.6]} 12... Be7
{[%clk 0:02:47.4]} 13. Ngf3 {[%clk 0:02:59.8]} 13... O-O {[%clk 0:02:48.2]} 14.
O-O {[%clk 0:03:00.7]} 14... Nh5 {[%clk 0:02:39.6]} 15. Bg5 {[%clk 0:02:57.1]}
15... f6 {[%clk 0:02:28.9]} 16. Bh4 {[%clk 0:02:57.4]} 16... g5 {[%clk 0:02:29]}
17. Bg3 {[%clk 0:02:58.3]} 17... Nxg3 {[%clk 0:02:29.6]} 18. hxg3 {[%clk
0:02:59.4]} 18... Rc6 {[%clk 0:01:49.7]} 19. b4 {[%clk 0:02:59]} 19... b5 {[%clk
0:01:27.5]} 20. Ra2 {[%clk 0:02:50.8]} 20... Nb8 {[%clk 0:01:26.2]} 21. Rfa1
{[%clk 0:02:50.8]} 21... Rc7 {[%clk 0:01:16.8]} 22. Nb3 {[%clk 0:02:46.3]} 22...
Bg6 {[%clk 0:01:01.3]} 23. Na5 {[%clk 0:02:46.8]} 23... Re8 {[%clk 0:00:59]} 24.
Kf1 {[%clk 0:02:30.3]} 24... Bd8 {[%clk 0:00:59.5]} 25. Ne1 {[%clk 0:02:19.4]}
25... e5 {[%clk 0:00:57.9]} 26. Bd3 {[%clk 0:02:17.8]} 26... exd4 {[%clk
0:00:49.8]} 27. Bxg6 {[%clk 0:02:16.1]} 27... hxg6 {[%clk 0:00:48.9]} 28. exd4
{[%clk 0:02:17.2]} 28... Re4 {[%clk 0:00:40.1]} 29. Nc2 {[%clk 0:02:17.5]} 29...
Rce7 {[%clk 0:00:37]} 30. Re1 {[%clk 0:02:18.1]} 30... Rxe1+ {[%clk 0:00:28.9]}
31. Nxe1 {[%clk 0:02:18.5]} 31... Re4 {[%clk 0:00:30.1]} 32. Nc2 {[%clk
0:02:19.3]} 32... g4 {[%clk 0:00:29.8]} 33. f3 {[%clk 0:02:18.1]} 33... gxf3
{[%clk 0:00:29.4]} 34. gxf3 {[%clk 0:02:19.1]} 34... Re6 {[%clk 0:00:30.1]} 35.
Ra1 {[%clk 0:02:13.6]} 35... Kf7 {[%clk 0:00:27.3]} 36. Re1 {[%clk 0:02:14.4]}
36... Rxe1+ {[%clk 0:00:21.9]} 37. Kxe1 {[%clk 0:02:14.8]} 37... Bxa5 {[%clk
0:00:23.1]} 38. bxa5 {[%clk 0:02:15.1]} 38... Nc6 {[%clk 0:00:24.7]} 39. Kd2
{[%clk 0:02:15.3]} 39... Ke6 {[%clk 0:00:23.7]} 40. Kc3 {[%clk 0:02:15.1]} 40...
Nxa5 {[%clk 0:00:24.6]} 41. Nb4 {[%clk 0:02:15.2]} 41... Nc4 {[%clk 0:00:21.8]}
42. Nxa6 {[%clk 0:02:14.7]} 42... Ne3 {[%clk 0:00:23]} 43. Nc7+ {[%clk
0:02:14.3]} 43... Kd7 {[%clk 0:00:23]} 44. Nxb5 {[%clk 0:02:15.2]} 44... Nf1
{[%clk 0:00:23.2]} 45. Kd3 {[%clk 0:02:02.2]} 45... Nxg3 {[%clk 0:00:23.8]} 46.
Nc3 {[%clk 0:01:48.7]} 46... Kc6 {[%clk 0:00:24.9]} 47. Ne2 {[%clk 0:01:49.9]}
47... Nf5 {[%clk 0:00:22.8]} 48. Nf4 {[%clk 0:01:50.9]} 48... Nh4 {[%clk
0:00:21.5]} 49. Ke3 {[%clk 0:01:49.5]} 49... f5 {[%clk 0:00:21.6]} 50. Nh3
{[%clk 0:01:45.9]} 50... Kd7 {[%clk 0:00:18]} 51. f4 {[%clk 0:01:46.5]} 51...
Ng2+ {[%clk 0:00:17.4]} 52. Kf2 {[%clk 0:01:42.5]} 52... Nh4 {[%clk 0:00:10.7]}
53. Kg3 {[%clk 0:01:41.5]} 53... g5 {[%clk 0:00:12.1]} 54. fxg5 {[%clk
0:01:38.5]} 54... Ng6 {[%clk 0:00:13.3]} 55. Nf4 {[%clk 0:01:39.8]} 55... Ne7
{[%clk 0:00:14.7]} 56. g6 {[%clk 0:01:38.6]} 56... Ke8 {[%clk 0:00:15.4]} 57.
Kh4 {[%clk 0:01:32.1]} 57... Nc6 {[%clk 0:00:16.8]} 58. Ne2 {[%clk 0:01:19.9]}
58... Kf8 {[%clk 0:00:15.7]} 59. Kg5 {[%clk 0:01:20.9]} 59... Ne7 {[%clk
0:00:16.5]} 60. Nf4 {[%clk 0:01:21.2]} 60... Nc6 {[%clk 0:00:17.3]} 61. Ne6+
{[%clk 0:01:19.9]} 61... Ke7 {[%clk 0:00:18.6]} 62. g7 {[%clk 0:01:21.3]} 62...
Kf7 {[%clk 0:00:19.4]} 63. Kxf5 {[%clk 0:01:22.3]} 63... Ne7+ {[%clk 0:00:20.8]}
64. Ke5 {[%clk 0:01:23.4]} 64... Nc6+ {[%clk 0:00:18.4]} 65. Kxd5 {[%clk
0:01:24.2]} 65... Ne7+ {[%clk 0:00:20.3]} 66. Kd6 {[%clk 0:01:25]} 66... Nf5+
{[%clk 0:00:21.5]} 67. Ke5 {[%clk 0:01:26.2]} 67... Ne7 {[%clk 0:00:23.1]} 68.
d5 {[%clk 0:01:27.2]} 68... Ng6+ {[%clk 0:00:23.3]} 69. Kd6 {[%clk 0:01:27.9]}
69... Ne7 {[%clk 0:00:22.9]} 70. c6 {[%clk 0:01:26.9]} 70... Nf5+ {[%clk
0:00:23.7]} 71. Ke5 {[%clk 0:01:27.9]} 71... Ne7 {[%clk 0:00:25.2]} 72. c7
{[%clk 0:01:28.7]} 72... Ng6+ {[%clk 0:00:24.7]} 73. Kd6 {[%clk 0:01:29.7]}
73... Ne7 {[%clk 0:00:26.2]} 74. Nd8+ {[%clk 0:01:21.6]} 74... Ke8 {[%clk
0:00:24.3]} 75. Ke6 {[%clk 0:01:22]} 75... Ng8 {[%clk 0:00:20.4]} 76. d6 {[%clk
0:01:19.6]} 76... Ne7 {[%clk 0:00:18.9]} 77. d7# {[%clk 0:01:19.2]} 1-0

[Event "*** Titled Tuesday Blitz"]
[Site "Chess.com"]
[Date "2019.01.01"]
[Round "10"]
[White "Zq1"]
[Black "Peroncio"]
[Result "1-0"]
[WhiteElo "2499"]
[BlackElo "2625"]
[TimeControl "180+2"]
[EndTime "15:23:16 PST"]
[Termination "Zq1 won by checkmate"]

1. d4 {[%clk 0:03:00.9]} 1... f5 {[%clk 0:03:00.7]} 2. Nf3 {[%clk 0:03:00.9]}
2... Nf6 {[%clk 0:03:01.4]} 3. Bg5 {[%clk 0:03:01.7]} 3... e6 {[%clk 0:03:01.1]}
4. Nbd2 {[%clk 0:03:01.8]} 4... Be7 {[%clk 0:03:02.5]} 5. Bxf6 {[%clk
0:03:01.6]} 5... Bxf6 {[%clk 0:03:04.4]} 6. e4 {[%clk 0:03:03]} 6... d5 {[%clk
0:03:06.2]} 7. exf5 {[%clk 0:02:56.9]} 7... exf5 {[%clk 0:03:07.3]} 8. Bd3
{[%clk 0:02:57.9]} 8... O-O {[%clk 0:03:08]} 9. O-O {[%clk 0:02:58]} 9... Nc6
{[%clk 0:03:08.3]} 10. c3 {[%clk 0:02:58.8]} 10... Qd6 {[%clk 0:03:07.7]} 11.
Qc2 {[%clk 0:02:57.4]} 11... g6 {[%clk 0:03:08.5]} 12. Rfe1 {[%clk 0:02:56.6]}
12... Bd7 {[%clk 0:03:08.9]} 13. b4 {[%clk 0:02:57.5]} 13... Rae8 {[%clk
0:03:00.3]} 14. a4 {[%clk 0:02:54.7]} 14... a5 {[%clk 0:02:57.8]} 15. b5 {[%clk
0:02:54.7]} 15... Nd8 {[%clk 0:02:56.1]} 16. c4 {[%clk 0:02:55.2]} 16... b6
{[%clk 0:02:08.1]} 17. cxd5 {[%clk 0:02:38.9]} 17... Nf7 {[%clk 0:02:00]} 18.
Rec1 {[%clk 0:02:25.4]} 18... Rc8 {[%clk 0:01:59.1]} 19. Nc4 {[%clk 0:02:20.2]}
19... Qf4 {[%clk 0:01:58.2]} 20. Qd2 {[%clk 0:02:04.6]} 20... Qxd2 {[%clk
0:01:21.9]} 21. Ncxd2 {[%clk 0:02:05]} 21... Rfe8 {[%clk 0:01:21.3]} 22. Nc4
{[%clk 0:02:00.1]} 22... Re7 {[%clk 0:01:15.9]} 23. Re1 {[%clk 0:01:54.6]} 23...
Rce8 {[%clk 0:01:14.3]} 24. Kf1 {[%clk 0:01:49.3]} 24... Bc8 {[%clk 0:01:10.8]}
25. Rxe7 {[%clk 0:01:22.5]} 25... Rxe7 {[%clk 0:01:12.7]} 26. g3 {[%clk
0:01:20.8]} 26... Bb7 {[%clk 0:01:12.2]} 27. Ne3 {[%clk 0:01:21.6]} 27... Nd6
{[%clk 0:01:00.2]} 28. Rc1 {[%clk 0:01:21.2]} 28... Kf8 {[%clk 0:01:00.8]} 29.
Ne5 {[%clk 0:01:17.9]} 29... Ke8 {[%clk 0:00:58.8]} 30. f4 {[%clk 0:01:16.6]}
30... Kd8 {[%clk 0:01:00.2]} 31. Bc4 {[%clk 0:01:03.6]} 31... Kc8 {[%clk
0:00:56.6]} 32. Bb3 {[%clk 0:01:03.7]} 32... Ne4 {[%clk 0:00:47]} 33. Ke2 {[%clk
0:00:57.2]} 33... Re8 {[%clk 0:00:44]} 34. Kd3 {[%clk 0:00:49.3]} 34... Be7
{[%clk 0:00:41.2]} 35. Nc6 {[%clk 0:00:43.7]} 35... Bd6 {[%clk 0:00:36.6]} 36.
Ne5 {[%clk 0:00:41.8]} 36... Bb4 {[%clk 0:00:34.3]} 37. N3c4 {[%clk 0:00:39.7]}
37... Kd8 {[%clk 0:00:24.1]} 38. Ne3 {[%clk 0:00:32.3]} 38... Nf2+ {[%clk
0:00:17.2]} 39. Ke2 {[%clk 0:00:32]} 39... Ne4 {[%clk 0:00:19.1]} 40. Rc2 {[%clk
0:00:32.6]} 40... Bd6 {[%clk 0:00:09.5]} 41. Kd3 {[%clk 0:00:31.9]} 41... Bb4
{[%clk 0:00:10.8]} 42. g4 {[%clk 0:00:29]} 42... fxg4 {[%clk 0:00:10.2]} 43.
Kxe4 {[%clk 0:00:29.2]} 43... Rf8 {[%clk 0:00:11.6]} 44. N3xg4 {[%clk
0:00:27.5]} 44... Rf5 {[%clk 0:00:12.1]} 45. Nc6+ {[%clk 0:00:25.3]} 45... Bxc6
{[%clk 0:00:12.5]} 46. bxc6 {[%clk 0:00:20.1]} 46... Bf8 {[%clk 0:00:14.4]} 47.
Ne5 {[%clk 0:00:19.7]} 47... Bh6 {[%clk 0:00:15.4]} 48. Rf2 {[%clk 0:00:18.1]}
48... Ke7 {[%clk 0:00:16.9]} 49. Rf3 {[%clk 0:00:15.7]} 49... Kd6 {[%clk
0:00:17.4]} 50. Nc4+ {[%clk 0:00:15.1]} 50... Ke7 {[%clk 0:00:16.9]} 51. d6+
{[%clk 0:00:15.6]} 51... cxd6 {[%clk 0:00:18.8]} 52. Nxb6 {[%clk 0:00:15.3]}
52... Kd8 {[%clk 0:00:20.4]} 53. Nd5 {[%clk 0:00:15.7]} 53... Bg7 {[%clk
0:00:16.7]} 54. Bc4 {[%clk 0:00:16.1]} 54... Kc8 {[%clk 0:00:17.1]} 55. Rb3
{[%clk 0:00:15.8]} 55... Rf8 {[%clk 0:00:14.8]} 56. Ba6+ {[%clk 0:00:16.1]}
56... Kd8 {[%clk 0:00:15.8]} 57. Rb8# {[%clk 0:00:16.8]} 1-0

[Event "*** Titled Tuesday Blitz"]
[Site "Chess.com"]
[Date "2019.01.01"]
[Round "10"]
[White "iLuusions"]
[Black "Berardino"]
[Result "1/2-1/2"]
[WhiteElo "2569"]
[BlackElo "2421"]
[TimeControl "180+2"]
[EndTime "15:23:26 PST"]
[Termination "Game drawn by agreement"]

1. d4 {[%clk 0:03:01.6]} 1... Nf6 {[%clk 0:02:58.8]} 2. c4 {[%clk 0:03:03.5]}
2... g6 {[%clk 0:02:59.7]} 3. Nf3 {[%clk 0:03:05.2]} 3... Bg7 {[%clk 0:03:00.5]}
4. g3 {[%clk 0:03:07.1]} 4... c5 {[%clk 0:02:53.9]} 5. Bg2 {[%clk 0:03:07.3]}
5... cxd4 {[%clk 0:02:54.6]} 6. Nxd4 {[%clk 0:03:08.2]} 6... d5 {[%clk
0:02:55.8]} 7. cxd5 {[%clk 0:03:04.8]} 7... Nxd5 {[%clk 0:02:56.3]} 8. Nc2
{[%clk 0:03:04.5]} 8... Be6 {[%clk 0:02:32.5]} 9. O-O {[%clk 0:02:21.3]} 9...
Nc6 {[%clk 0:02:31.7]} 10. e4 {[%clk 0:01:40.6]} 10... Nb6 {[%clk 0:02:10.6]}
11. Nc3 {[%clk 0:01:39.3]} 11... O-O {[%clk 0:02:09.2]} 12. Ne3 {[%clk
0:01:27.9]} 12... Nc4 {[%clk 0:01:39.1]} 13. Ned5 {[%clk 0:01:23.4]} 13... Rc8
{[%clk 0:01:19]} 14. Qa4 {[%clk 0:01:15.5]} 14... Nd4 {[%clk 0:00:27.6]} 15. Rd1
{[%clk 0:01:11.8]} 15... Bxd5 {[%clk 0:00:25.3]} 16. exd5 {[%clk 0:01:11.3]}
16... a6 {[%clk 0:00:23]} 17. Bf1 {[%clk 0:00:46.5]} 17... Nb6 {[%clk
0:00:13.4]} 18. Qa5 {[%clk 0:00:43.2]} 18... Nc4 {[%clk 0:00:06.1]} 19. Qxd8
{[%clk 0:00:35.8]} 19... Rfxd8 {[%clk 0:00:06.6]} 20. Bd3 {[%clk 0:00:32.4]}
20... Ne5 {[%clk 0:00:04.1]} 21. Be4 {[%clk 0:00:32.5]} 21... f5 {[%clk
0:00:03.7]} 22. Rxd4 {[%clk 0:00:29.6]} 22... fxe4 {[%clk 0:00:05.1]} 23. Rxe4
{[%clk 0:00:30.7]} 23... Nd3 {[%clk 0:00:07]} 24. Rxe7 {[%clk 0:00:28.1]} 24...
b5 {[%clk 0:00:08.3]} 25. Bg5 {[%clk 0:00:21.6]} 25... b4 {[%clk 0:00:09.2]} 26.
Ne4 {[%clk 0:00:22.8]} 26... Rxd5 {[%clk 0:00:10.2]} 27. Nf6+ {[%clk 0:00:23]}
27... Bxf6 {[%clk 0:00:11.5]} 28. Bxf6 {[%clk 0:00:24.9]} 28... Rf5 {[%clk
0:00:12]} 29. Bd4 {[%clk 0:00:24.7]} 29... Rd8 {[%clk 0:00:10.9]} 30. Be3 {[%clk
0:00:23.1]} 30... Nxb2 {[%clk 0:00:11]} 31. Rb1 {[%clk 0:00:24.2]} 31... Nd3
{[%clk 0:00:11.3]} 32. Rd1 {[%clk 0:00:24.5]} 32... Rfd5 {[%clk 0:00:11]} 33.
Bb6 {[%clk 0:00:23]} 33... R8d7 {[%clk 0:00:11.1]} 34. Re8+ {[%clk 0:00:17]}
34... Kf7 {[%clk 0:00:11.6]} 35. Rh8 {[%clk 0:00:18.2]} 35... Kg7 {[%clk
0:00:12.3]} 36. Ra8 {[%clk 0:00:20.1]} 36... a5 {[%clk 0:00:14.2]} 37. Rxa5
{[%clk 0:00:20.4]} 37... R5d6 {[%clk 0:00:13]} 38. Be3 {[%clk 0:00:19.7]} 38...
Nb2 {[%clk 0:00:12.5]} 39. Rxd6 {[%clk 0:00:20.3]} 39... Rxd6 {[%clk 0:00:14.4]}
40. Rb5 {[%clk 0:00:17.2]} 40... Nd3 {[%clk 0:00:15.3]} 41. Ra5 {[%clk
0:00:16.8]} 41... Kf7 {[%clk 0:00:16.3]} 42. Kf1 {[%clk 0:00:17.9]} 42... Ke6
{[%clk 0:00:17.3]} 43. Ra7 {[%clk 0:00:19.2]} 43... h5 {[%clk 0:00:18]} 44. Ke2
{[%clk 0:00:20.5]} 44... Ne5 {[%clk 0:00:19.1]} 45. h4 {[%clk 0:00:21.3]} 45...
Ng4 {[%clk 0:00:20.1]} 46. Bf4 {[%clk 0:00:22.6]} 46... Rc6 {[%clk 0:00:20.8]}
47. f3 {[%clk 0:00:21.6]} 47... Nf6 {[%clk 0:00:21.5]} 48. Rg7 {[%clk
0:00:22.1]} 48... Kf5 {[%clk 0:00:17.1]} 49. Rf7 {[%clk 0:00:22]} 49... Ke6
{[%clk 0:00:18.1]} 50. Rg7 {[%clk 0:00:23.3]} 50... Kf5 {[%clk 0:00:19.3]} 51.
Rb7 {[%clk 0:00:23.9]} 51... Nd5 {[%clk 0:00:20.2]} 52. Rb5 {[%clk 0:00:24]}
52... Ke6 {[%clk 0:00:21.5]} 53. Bd2 {[%clk 0:00:23.5]} 53... Ra6 {[%clk
0:00:21.1]} 54. Bxb4 {[%clk 0:00:18.7]} 54... Rxa2+ {[%clk 0:00:22.1]} 55. Kd3
{[%clk 0:00:20.1]} 55... Rb2 {[%clk 0:00:23.3]} 56. Kc4 {[%clk 0:00:21.5]} 56...
Rc2+ {[%clk 0:00:22.8]} 57. Kd3 {[%clk 0:00:20.9]} 57... Rb2 {[%clk 0:00:24]}
58. Kc4 {[%clk 0:00:22.2]} 58... Nxb4 {[%clk 0:00:24.8]} 59. Rxb4 {[%clk
0:00:23.2]} 59... Rg2 {[%clk 0:00:26.7]} 60. Rb6+ {[%clk 0:00:23.4]} 60... Kf7
{[%clk 0:00:26.2]} 61. Rb7+ {[%clk 0:00:24.8]} 61... Kf6 {[%clk 0:00:27.5]} 62.
Rb6+ {[%clk 0:00:26.1]} 62... Kf7 {[%clk 0:00:28.7]} 63. Rb7+ {[%clk 0:00:27.3]}
63... Kf6 {[%clk 0:00:29.1]} 64. Rb6+ {[%clk 0:00:27]} 64... Kg7 {[%clk
0:00:30.6]} 65. Rb7+ {[%clk 0:00:28.4]} 65... Kh6 {[%clk 0:00:31.9]} 66. Kd3
{[%clk 0:00:28.8]} 66... Rxg3 {[%clk 0:00:32.9]} 67. Ke3 {[%clk 0:00:30.7]}
67... Rh3 {[%clk 0:00:30.2]} 68. Rb4 {[%clk 0:00:31.4]} 1/2-1/2